bitfinex/quotes_ETHUSD_20220111
["timestamp","ask_amount","ask_price","bid_price","bid_amount"]
[1641933189180,0.00227369,3247.0,3246.5,1.14243666]
[1641933189481,0.00170527,3246.9,3246.7,1.00724998]
[1641933189686,0.00170527,3246.9,3246.8,3.05]
[1641933189881,0.00113685,3246.8,3246.5,1.14243666]
[1641933190086,0.6,3247.3,3246.5,1.14243666]
[1641933190087,0.00170527,3246.9,3246.5,1.14243666]
[1641933190281,0.00341054,3247.2,3246.5,1.14243666]
[1641933190488,0.747,3247.3,3246.5,1.14243666]
[1641933190489,0.00113685,3246.8,3246.5,1.14243666]
[1641933190686,0.56375055,3247.0,3246.5,1.14243666]
[1641933190890,0.7702012,3246.8,3246.2,4.0409]
[1641933191087,1.5404112,3246.8,3246.2,4.0409]
[1641933191288,1.8404112,3246.8,3246.3,0.00170527]
[1641933192745,0.3,3246.7,3246.3,0.00170527]
[1641933193648,0.0314643,3246.6,3246.3,0.00170527]
[1641933194044,1.37021,3246.8,3246.2,0.00227369]
[1641933194646,0.3639887,3246.4,3246.2,0.00227369]
[1641933195046,0.6639887,3246.4,3246.2,0.00227369]
[1641933195682,0.6639887,3246.4,3246.0,0.00341054]
[1641933196082,0.6639887,3246.4,3246.2,2.62473132]
[1641933196883,0.6639887,3246.4,3246.0,2.62814186]
[1641933197382,0.6639887,3246.4,3246.1,0.00284212]
[1641933197983,0.6639887,3246.4,3245.9,0.00397896]
[1641933198384,0.6639887,3246.4,3245.9,2.62479822]
[1641933198787,0.6639887,3246.4,3246.0,0.00341054]
[1641933199630,0.6639887,3246.4,3245.9,0.00397896]
[1641933200032,0.6639887,3246.4,3245.9,2.62877718]
[1641933200435,0.6639887,3246.4,3246.0,0.00341054]
[1641933200834,0.6639887,3246.4,3246.0,2.62820876]
[1641933201238,0.6639887,3246.4,3246.1,0.00284212]
[1641933202039,0.6639887,3246.4,3246.0,0.00341054]
[1641933202241,0.77033,3246.2,3246.0,0.00341054]
[1641933202642,0.3,3246.2,3245.7,0.00511581]
[1641933202880,0.6639887,3246.4,3245.7,0.00511581]
[1641933203278,0.6639887,3246.4,3245.7,2.6301358]
[1641933203683,0.6639887,3246.4,3245.8,0.00454739]
[1641933204484,0.6639887,3246.4,3245.8,2.62956738]
[1641933204887,0.6639887,3246.4,3245.9,0.00397896]
[1641933206087,0.01075814,3246.3,3245.9,0.00397896]
[1641933206286,0.6639887,3246.4,3245.7,0.00511581]
[1641933207937,0.6639887,3246.4,3245.8,2.62487664]
[1641933208337,0.6639887,3246.4,3245.9,0.00397896]
[1641933209938,0.6639887,3246.4,3246.0,2.62487664]
[1641933210439,0.6639887,3246.4,3246.1,0.00284212]
[1641933211845,0.6639887,3246.4,3245.8,0.00454739]
[1641933212641,0.6639887,3246.4,3245.9,2.62487664]
[1641933213041,0.6639887,3246.4,3246.0,0.00341054]
[1641933214345,0.6639887,3246.4,3245.8,0.00454739]
[1641933215143,0.6639887,3246.4,3245.9,2.62487664]
[1641933215542,0.3639887,3246.4,3246.0,3.04754581]
[1641933216041,0.3639887,3246.4,3246.1,0.00284212]
[1641933216443,0.3639887,3246.4,3246.0,0.95284212]
[1641933216642,0.3639887,3246.4,3246.1,2.62487664]
[1641933216643,0.00113685,3246.3,3246.1,2.62487664]
[1641933217249,0.00113685,3246.3,3246.2,2.01297185]
[1641933217445,0.00113685,3246.3,3246.1,2.62487664]
[1641933218096,0.00113685,3246.3,3246.0,2.62487664]
[1641933218696,0.00113685,3246.3,3246.1,1.0]
[1641933219794,0.00113685,3246.3,3246.0,2.62487664]
[1641933219996,0.00113685,3246.3,3246.2,2.62487664]
[1641933221199,0.00113685,3246.3,3245.8,2.62487664]
[1641933221629,0.00113685,3246.3,3245.9,1.00113684]
[1641933222333,0.00113685,3246.3,3245.9,0.00113684]
[1641933222730,0.00113685,3246.3,3246.0,2.62487664]
[1641933223530,0.00113685,3246.3,3245.9,2.62487664]
[1641933224934,0.00113685,3246.3,3245.8,0.00170527]
[1641933225134,0.00113685,3246.3,3245.8,1.00170527]
[1641933225987,0.00113685,3246.3,3245.8,3.03393873]
[1641933226395,0.00113685,3246.3,3245.8,1.00170527]
[1641933226589,0.00113685,3246.3,3245.9,2.62487664]
[1641933227889,0.00113685,3246.3,3245.8,2.62658191]
[1641933228591,0.00113685,3246.3,3246.0,2.62487664]
[1641933229439,0.00113685,3246.3,3245.8,4.65321621]
[1641933229838,0.00113685,3246.3,3245.8,2.62658191]
[1641933230239,0.00113685,3246.3,3245.9,2.62487664]
[1641933231040,0.00113685,3246.3,3245.8,2.62658191]
[1641933240386,0.00113685,3246.3,3245.9,0.01100385]
[1641933240585,0.00113685,3246.3,3245.8,2.62658191]
[1641933240785,0.00113685,3246.3,3245.8,4.65829643]
[1641933241187,0.00113685,3246.3,3246.0,2.62487664]
[1641933242093,0.00113685,3246.3,3245.9,2.62487664]
[1641933242893,0.00113685,3246.3,3246.1,2.62487664]
[1641933243492,0.00113685,3246.3,3246.0,2.62487664]
[1641933244334,0.00113685,3246.3,3246.2,2.62487664]
[1641933244735,0.00113685,3246.3,3246.1,2.62487664]
[1641933245943,0.00113685,3246.3,3245.8,0.00170527]
[1641933246137,0.00113685,3246.3,3245.8,1.00170527]
[1641933246739,0.3639887,3246.4,3245.8,1.00170527]
[1641933247993,0.3639887,3246.4,3245.9,2.62487664]
[1641933248189,0.3639887,3246.4,3245.9,2.52487664]
[1641933248790,0.6639887,3246.4,3245.9,2.52487664]
[1641933248989,0.6639887,3246.4,3245.8,0.00170527]
[1641933249389,0.6639887,3246.4,3245.7,0.00227369]
[1641933250396,0.01394369,3246.3,3245.7,0.00227369]
[1641933250602,0.7702843,3246.3,3245.7,0.00227369]
[1641933250795,1.0702843,3246.3,3245.7,0.00227369]
[1641933250994,0.3,3246.2,3245.7,0.00227369]
[1641933251932,0.7454468,3246.2,3245.6,0.00284211]
[1641933252131,0.3,3246.2,3245.6,0.00284211]
[1641933254139,0.00806854,3246.1,3245.6,0.00284211]
[1641933255284,0.87403737,3246.2,3245.6,0.00284211]
[1641933255696,1.64436737,3246.2,3245.6,0.00284211]
[1641933258094,0.87403737,3246.2,3245.6,0.00284211]
[1641933258299,0.3,3246.1,3245.6,0.00284211]
[1641933258594,0.87403737,3246.2,3245.5,0.00341054]
[1641933259054,0.77042,3245.8,3245.5,0.00341054]
[1641933259243,0.447,3245.7,3245.5,0.00341054]
[1641933259443,1.22098335,3245.7,3245.4,0.00397896]
[1641933259640,1.5176082,3245.7,3245.4,0.00397896]
[1641933260241,3.0824364,3245.6,3245.4,0.00397896]
[1641933260446,0.3,3245.5,3245.4,0.00397896]
[1641933261845,0.3,3245.5,3244.8,0.0073895]
[1641933262046,0.85109909,3245.1,3244.8,0.0073895]
[1641933262246,0.70679909,3245.1,3244.8,0.0073895]
[1641933262447,0.85109909,3245.1,3244.8,0.0073895]
[1641933262648,0.55109909,3245.1,3244.8,0.0073895]
[1641933262886,0.85109909,3245.1,3244.7,0.00795793]
[1641933263495,0.55109909,3245.1,3244.7,0.00795793]
[1641933264091,0.7706112,3245.0,3244.7,0.00795793]
[1641933264695,0.3299222,3244.9,3244.7,0.00795793]
[1641933266103,2.32407232,3246.3,3244.7,0.00795793]
[1641933266104,0.8109887,3246.4,3244.7,3.39401813]
[1641933266295,0.3639887,3246.4,3245.6,1.09484472]
[1641933266545,0.3639887,3246.4,3245.4,6.11]
[1641933266736,0.3639887,3246.4,3245.7,0.00227369]
[1641933266936,0.3639887,3246.4,3245.5,0.00341054]
[1641933267539,0.57824271,3245.6,3245.5,0.00341054]
[1641933267738,1.64875211,3245.6,3245.5,0.00341054]
[1641933267938,1.64875211,3245.6,3244.8,6.11]
[1641933267939,1.94875211,3245.6,3245.1,0.00568423]
[1641933268136,1.17824271,3245.6,3244.9,0.00682108]
[1641933268537,0.77053,3245.4,3244.9,0.00682108]
[1641933268744,0.7705572,3245.3,3244.9,0.00682108]
[1641933268938,1.0798572,3245.3,3244.9,0.00682108]
[1641933269138,0.3,3245.2,3244.9,0.00682108]
[1641933269338,0.447,3245.1,3244.9,0.00682108]
[1641933269537,2.2884,3245.1,3244.7,0.00795793]
[1641933269938,1.5177,3245.1,3244.7,0.00795793]
[1641933270586,0.97335676,3244.2,3244.1,0.01136847]
[1641933270788,0.3772999,3244.2,3244.1,0.01136847]
[1641933270985,0.6772999,3244.2,3244.1,0.01136847]
[1641933271190,0.6772999,3244.2,3244.1,3.06136847]
[1641933272193,1.20222828,3244.2,3244.1,3.06136847]
[1641933272590,1.20222828,3244.2,3244.1,5.68750252]
[1641933272591,0.6772999,3244.2,3244.1,5.68750252]
[1641933273192,0.6772999,3244.2,3244.1,2.63750252]
[1641933273395,0.6772999,3244.2,3243.8,0.27639994]
[1641933273396,3.05,3244.1,3243.8,0.27639994]
[1641933273590,3.05,3244.1,3243.6,3.93765129]
[1641933273591,5.45,3243.9,3243.6,3.93765129]
[1641933273792,0.447,3243.8,3243.6,3.93765129]
[1641933274049,0.747,3243.8,3243.6,3.93765129]
[1641933274240,0.747,3243.8,3243.6,5.129e-05]
[1641933274443,8.0545254,3243.7,3243.0,2.20147393]
[1641933274643,8.0545254,3243.7,3242.5,3.9401974]
[1641933274644,0.7711252,3243.1,3242.5,3.9401974]
[1641933274845,0.48351879,3242.9,3242.5,3.9401974]
[1641933275042,0.78351879,3242.9,3242.5,3.9401974]
[1641933275243,1.08351879,3242.9,3242.5,3.9401974]
[1641933275444,0.77115,3242.8,3242.5,3.9401974]
[1641933275644,1.0711066,3243.0,3242.5,3.9401974]
[1641933275844,0.447,3243.4,3242.4,3.9348]
[1641933276044,0.747,3243.4,3242.4,3.9348]
[1641933276245,1.047,3243.4,3242.5,0.00909477]
[1641933276553,0.6,3243.4,3243.2,1.04080008]
[1641933276946,0.3,3243.4,3243.3,0.00454738]
[1641933277150,0.447,3243.8,3243.3,0.00454738]
[1641933277346,0.747,3243.8,3243.3,0.00454738]
[1641933277546,0.447,3243.8,3243.3,0.00454738]
[1641933277986,0.77095,3243.7,3243.3,0.00454738]
[1641933278588,0.77095,3243.7,3242.8,0.0073895]
[1641933278788,1.07095,3243.7,3242.8,0.0073895]
[1641933278989,0.771,3243.5,3242.8,0.0073895]
[1641933279488,1.071,3243.5,3242.8,0.0073895]
[1641933279688,1.071,3243.5,3243.0,0.99515745]
[1641933280191,0.77102,3243.4,3243.1,0.00568423]
[1641933280594,0.771,3243.5,3243.1,0.00568423]
[1641933280795,3.08391,3243.9,3243.1,0.00568423]
[1641933280796,0.77093,3243.8,3243.1,0.00568423]
[1641933280998,1.37093,3243.8,3243.1,0.00568423]
[1641933281195,0.6,3243.8,3243.1,0.00568423]
[1641933281392,0.3,3243.8,3243.1,0.00568423]
[1641933281650,0.771,3243.5,3243.1,0.00568423]
[1641933282053,0.77097,3243.6,3243.1,0.00568423]
[1641933282251,0.77097,3243.6,3242.7,0.00795792]
[1641933282455,0.3,3243.5,3242.7,0.00795792]
[1641933282652,1.071,3243.5,3242.7,0.00795792]
[1641933283052,1.371,3243.5,3242.7,0.9422239]
[1641933283455,1.371,3243.5,3242.8,0.0073895]
[1641933283852,0.77102,3243.4,3242.8,0.0073895]
[1641933284463,0.3,3243.4,3242.8,0.0073895]
[1641933284754,1.371,3243.5,3242.8,0.0073895]
[1641933285394,0.6,3243.5,3242.8,0.0073895]
[1641933285593,0.3,3243.5,3242.8,0.0073895]
[1641933286193,0.58027683,3243.2,3242.8,0.0073895]
[1641933286393,0.3,3243.5,3242.8,0.0073895]
[1641933286394,0.77101,3243.4,3242.8,0.0073895]
[1641933286594,0.3,3243.3,3242.7,0.00795792]
[1641933287194,0.3,3243.3,3243.2,0.86185742]
[1641933287594,0.3,3243.4,3243.2,0.86697323]
[1641933287793,0.3,3243.6,3243.2,0.86697323]
[1641933288094,0.3,3243.6,3243.3,0.00454738]
[1641933289545,0.3,3243.7,3243.3,0.00454738]
[1641933289743,0.60200249,3243.9,3243.3,0.00454738]
[1641933290546,2.14377249,3243.9,3243.3,0.00454738]
[1641933290746,1.37288249,3243.9,3243.3,0.00454738]
[1641933290945,0.3,3243.8,3243.3,0.00454738]
[1641933291348,0.90200249,3243.9,3243.3,0.00454738]
[1641933291752,0.77093,3243.7,3242.7,0.00795792]
[1641933291948,0.3,3243.5,3242.7,0.00795792]
[1641933292647,0.77105,3243.5,3242.7,0.00795792]
[1641933292896,0.7710362,3243.2,3242.7,0.00795792]
[1641933293099,0.91608045,3243.2,3242.7,0.00795792]
[1641933293296,1.68712045,3243.2,3242.7,0.00795792]
[1641933294399,0.57252919,3243.2,3242.7,0.99586773]
[1641933294597,0.87252919,3243.2,3242.7,0.99586773]
[1641933294802,0.57252919,3243.2,3242.8,0.0073895]
[1641933294998,0.27252919,3243.2,3242.8,0.0073895]
[1641933299777,0.7710234,3243.1,3242.8,0.0073895]
[1641933300393,1.0710234,3243.1,3242.8,0.0073895]
[1641933300595,1.3710234,3243.1,3242.7,0.00795792]
[1641933300795,0.6,3243.1,3242.7,0.00795792]
[1641933300999,0.3,3243.1,3242.7,0.00795792]
[1641933301299,0.77107,3243.1,3242.7,0.00795792]
[1641933301500,2.11466469,3243.2,3242.7,1.0531912]
[1641933301698,0.7710002,3243.1,3242.7,1.0531912]
[1641933301899,0.7710002,3243.1,3242.8,0.0073895]
[1641933305036,2.3130902,3243.1,3242.8,0.0073895]
[1641933305243,0.7710002,3243.1,3242.8,0.0073895]
[1641933307345,1.5420966,3243.0,3242.8,0.0073895]
[1641933308695,3.0842037,3243.0,3242.8,0.0073895]
[1641933308899,1.54188,3243.8,3242.7,0.00795792]
[1641933309100,0.80521363,3244.2,3242.7,0.00795792]
[1641933309101,0.80521363,3244.2,3242.8,0.01280344]
[1641933309297,0.80521363,3244.2,3242.9,0.0461219]
[1641933309500,0.80521363,3244.2,3242.9,0.05294298]
[1641933309696,0.80521363,3244.2,3243.1,0.01479145]
[1641933309897,0.7707696,3244.0,3243.2,0.99601943]
[1641933310107,0.77077,3244.1,3243.2,1.00113524]
[1641933310303,0.80521363,3244.2,3243.3,0.00454738]
[1641933311301,0.7707971,3243.8,3243.3,0.00454738]
[1641933311743,1.03208228,3243.9,3243.3,0.00454738]
[1641933312344,1.03208228,3243.9,3243.2,0.00511581]
[1641933312545,0.77084,3243.9,3243.2,0.00511581]
[1641933313345,0.7708464,3243.6,3243.2,0.00511581]
[1641933313544,1.5418,3244.0,3243.2,0.00511581]
[1641933313946,0.3,3244.0,3243.2,0.00511581]
[1641933314345,1.84171,3244.1,3243.2,0.00511581]
[1641933314648,0.37619902,3243.9,3243.2,0.00511581]
[1641933314846,0.37619902,3243.9,3243.3,2.62707966]
[1641933315045,0.37619902,3243.9,3243.4,2.11137374]
[1641933315297,0.37619902,3243.9,3243.4,0.00397896]
[1641933315502,0.37619902,3243.9,3243.5,0.00341054]
[1641933315696,0.37619902,3243.9,3243.6,1.07924501]
[1641933315896,0.37619902,3243.9,3243.7,2.03702346]
[1641933316100,4.96871,3244.8,3243.7,2.03929715]
[1641933316101,4.52171,3244.8,3243.7,2.03929715]
[1641933316301,0.2763,3244.8,3244.1,1.1418486]
[1641933316499,0.0022737,3244.5,3244.1,2.1632486]
[1641933316698,0.0022737,3244.5,3244.1,1.0214]
[1641933316898,0.00170527,3244.4,3244.1,1.0214]
[1641933317300,0.2763,3244.8,3244.1,1.0214]
[1641933317301,0.00113685,3244.3,3244.1,1.0214]
[1641933317700,0.00341054,3244.7,3243.8,4.63810527]
[1641933317900,0.7708,3244.1,3243.8,4.63810527]
[1641933318105,1.0708,3244.1,3243.9,0.00113684]
[1641933318703,0.7708,3244.1,3243.9,0.00113684]
[1641933318902,1.5416,3244.1,3243.9,0.00113684]
[1641933319136,0.7707453,3244.2,3243.9,0.00113684]
[1641933319943,0.00284212,3244.6,3243.9,0.00113684]
[1641933319944,0.3,3244.1,3243.9,0.00113684]
[1641933320444,0.7706986,3244.3,3243.9,0.00113684]
[1641933322646,0.77074,3244.2,3243.9,0.00113684]
[1641933322899,1.5415026,3244.2,3243.9,0.00113684]
[1641933323104,0.3,3244.1,3243.9,0.00113684]
[1641933323703,1.07078,3244.1,3243.9,0.00113684]
[1641933324502,0.3,3244.1,3243.9,0.00113684]
[1641933324903,2.1414444,3244.3,3243.9,0.00113684]
[1641933326305,0.6,3244.3,3243.9,0.00113684]
[1641933326540,0.60284212,3244.6,3243.9,0.00113684]
[1641933326740,1.37354212,3244.6,3243.9,0.00113684]
[1641933327341,0.7707,3244.5,3243.9,0.00113684]
[1641933327744,0.77239797,3244.4,3243.9,0.00113684]
[1641933327943,0.3,3244.3,3243.9,0.00113684]
[1641933328145,0.30113685,3244.3,3243.9,0.00113684]
[1641933329147,0.30113685,3244.3,3243.9,2.05639926]
[1641933329347,0.30113685,3244.3,3243.9,0.00113684]
[1641933329348,0.00113685,3244.3,3243.9,0.00113684]
[1641933329551,0.00113685,3244.3,3243.9,1.21543684]
[1641933329748,0.00113685,3244.3,3243.9,2.21543684]
[1641933332711,0.00113685,3244.3,3243.9,1.21543684]
[1641933333911,0.00113685,3244.3,3243.9,2.05490329]
[1641933334441,0.00113685,3244.3,3243.9,1.21543684]
[1641933336849,0.77185965,3244.3,3243.9,1.21543684]
[1641933337052,1.07185965,3244.3,3243.9,0.00113684]
[1641933337249,1.37185965,3244.3,3243.9,0.00113684]
[1641933337894,0.00113685,3244.3,3243.9,0.00113684]
[1641933338094,0.00113685,3244.3,3244.0,1.07807976]
[1641933345047,0.00113685,3244.3,3244.0,1.84861976]
[1641933345353,0.00113685,3244.3,3244.1,2.05297835]
[1641933345555,0.00113685,3244.3,3244.1,3.05297835]
[1641933345749,0.00113685,3244.3,3244.2,8.80379526]
[1641933346148,0.00113685,3244.3,3244.2,9.80379526]
[1641933346352,0.00113685,3244.3,3244.2,10.57426526]
[1641933348452,0.00113685,3244.3,3244.2,13.20050361]
[1641933349652,0.00113685,3244.3,3244.2,10.57426526]
[1641933349854,0.00113685,3244.3,3244.2,28.62426526]
[1641933350252,0.00113685,3244.3,3244.2,31.25042871]
[1641933350858,0.18770946,3245.6,3245.3,0.7704422]
[1641933351154,0.00682108,3245.5,3245.4,0.77045]
[1641933353505,0.00682108,3245.5,3245.1,1.01308513]
[1641933353902,0.00625266,3245.4,3245.1,1.01308513]
[1641933354303,0.00568424,3245.3,3245.1,1.01308513]
[1641933354707,0.00511581,3245.2,3245.1,1.01308513]
[1641933355906,0.00511581,3245.2,3245.0,7.45449]
[1641933356307,0.00454739,3245.1,3245.0,7.45449]
[1641933360704,0.00454739,3245.1,3245.0,9.49048638]
[1641933361101,0.00454739,3245.1,3245.0,7.45449]
[1641933362209,0.00454739,3245.1,3245.0,13.99342768]
[1641933362406,0.00454739,3245.1,3245.0,14.59342768]
[1641933362604,0.00454739,3245.1,3245.0,18.29692768]
[1641933364063,0.00454739,3245.1,3245.0,15.31722768]
[1641933364253,0.00454739,3245.1,3245.0,11.15799]
[1641933364451,0.00454739,3245.1,3245.0,9.6171]
[1641933368807,0.00454739,3245.1,3245.0,8.4407]
[1641933369408,0.00454739,3245.1,3245.0,4.7372]
[1641933370211,0.01881633,3245.0,3244.6,4.4188]
[1641933370412,0.77065,3244.8,3244.3,3.8995]
[1641933370616,0.447,3244.7,3244.3,3.8995]
[1641933370814,0.447,3244.7,3243.5,1.08259319]
[1641933370815,0.52947121,3244.6,3243.5,1.08259319]
[1641933371018,0.53117648,3244.6,3243.5,1.1927]
[1641933371220,0.44813685,3244.5,3243.6,1.54547896]
[1641933371651,0.44813685,3244.5,3243.7,0.00341054]
[1641933372650,1.21900685,3244.5,3243.7,0.00341054]
[1641933373053,0.77079,3244.2,3243.7,0.00341054]
[1641933375502,0.447,3244.1,3243.7,0.00341054]
[1641933375705,0.77084,3244.0,3243.7,0.00341054]
[1641933378708,0.77084,3244.0,3243.7,0.77424054]
[1641933379157,0.77084,3244.0,3243.8,0.00284212]
[1641933381061,0.77084,3244.0,3243.5,0.00454739]
[1641933381263,0.77084,3244.0,3243.6,0.77086]
[1641933381662,0.77084,3244.0,3243.7,0.00341054]
[1641933382565,0.7708,3244.2,3243.8,0.7708]
[1641933382808,1.25325155,3244.5,3244.0,0.86599763]
[1641933383205,1.25325155,3244.5,3244.1,0.00113685]
[1641933384106,0.77075,3244.4,3244.1,0.00113685]
[1641933384706,0.77075,3244.4,3244.0,0.00170527]
[1641933385310,0.77075,3244.4,3244.0,1.85940575]
[1641933385708,0.77075,3244.4,3244.1,0.00113685]
[1641933386308,0.77075,3244.4,3243.7,0.00341054]
[1641933386746,0.77075,3244.4,3243.9,1.67479646]
[1641933387151,0.77075,3244.4,3244.0,0.00170527]
[1641933387353,0.80625155,3244.5,3244.0,0.00170527]
[1641933387551,0.00113685,3244.5,3244.0,0.00170527]
[1641933387753,0.00113685,3244.5,3244.1,0.77072]
[1641933388358,0.00113685,3244.5,3244.0,0.00170527]
[1641933388359,0.4927503,3244.4,3244.0,0.00170527]
[1641933388555,1.79047335,3244.4,3244.0,0.00170527]
[1641933388752,1.79047335,3244.4,3243.3,4.759]
[1641933388753,1.01973335,3244.4,3243.5,0.00454739]
[1641933388955,1.61973335,3244.4,3243.5,0.00454739]
[1641933389154,0.07998305,3244.3,3243.4,0.00511581]
[1641933389357,0.447,3244.2,3243.4,0.00511581]
[1641933389557,0.77092,3243.8,3243.4,0.00511581]
[1641933389757,0.46121227,3243.7,3243.4,0.00511581]
[1641933389955,0.447,3243.7,3242.8,0.00852635]
[1641933390157,0.747,3243.7,3242.8,0.00852635]
[1641933390405,0.747,3243.7,3243.1,0.9112377]
[1641933390406,0.447,3243.7,3243.1,0.9112377]
[1641933390612,0.7711,3243.3,3243.1,0.9112377]
[1641933390806,0.7711,3243.3,3243.2,0.00625266]
[1641933391005,1.2181,3243.3,3243.2,0.00625266]
[1641933391407,0.447,3243.3,3243.2,0.00625266]
[1641933391809,0.447,3243.3,3243.2,2.25625266]
[1641933392607,0.447,3243.8,3243.2,2.25625266]
[1641933393009,0.7709,3243.7,3243.3,0.00568423]
[1641933393613,1.447,3243.8,3243.3,0.00568423]
[1641933393817,1.447,3243.8,3243.6,0.89927727]
[1641933394078,0.447,3243.8,3243.3,0.00568423]
[1641933395375,0.447,3243.8,3243.3,0.90862311]
[1641933395780,0.447,3243.8,3243.4,0.00511581]
[1641933395978,1.2179,3243.8,3243.4,0.00511581]
[1641933396583,1.5179,3243.8,3243.4,0.00511581]
[1641933396980,0.447,3243.8,3243.0,0.0073895]
[1641933397181,3.7649988,3243.7,3242.8,0.00852635]
[1641933398000,3.84389965,3243.7,3242.8,0.00852635]
[1641933398307,0.77093,3243.6,3243.0,0.85406647]
[1641933398701,0.77093,3243.6,3243.1,0.00682108]
[1641933399708,1.98874,3244.2,3243.2,0.77087]
[1641933400108,1.98874,3244.2,3243.3,0.00568423]
[1641933400707,1.98874,3244.2,3243.4,0.8939789]
[1641933400911,0.77085,3243.9,3243.4,0.8939789]
[1641933401107,0.77085,3243.9,3243.5,0.00454739]
[1641933401308,1.98874,3244.2,3243.5,0.00454739]
[1641933401553,2.98874,3244.2,3243.5,0.00454739]
[1641933401852,2.31285,3244.0,3243.5,0.00454739]
[1641933402254,0.77101,3243.7,3243.4,0.00511581]
[1641933403055,1.5420235,3243.7,3243.4,0.00511581]
[1641933403258,0.77104,3243.5,3243.4,0.00511581]
[1641933406109,0.72104,3243.5,3243.4,0.96625035]
[1641933406312,0.77091,3243.7,3243.4,0.96625035]
[1641933406706,0.77091,3243.7,3243.5,0.00454739]
[1641933407610,0.77091,3243.7,3243.3,4.8709]
[1641933407611,0.77091,3243.7,3243.4,0.00511581]
[1641933413627,1.10046555,3243.7,3243.4,0.00511581]
[1641933420710,1.87144135,3243.7,3243.4,0.00511581]
[1641933420911,1.542,3243.6,3243.4,0.00511581]
[1641933421110,1.87144135,3243.7,3243.4,0.00511581]
[1641933421314,0.77098,3243.6,3243.4,0.00511581]
[1641933422111,1.24744129,3243.6,3243.4,0.00511581]
[1641933422712,0.77098,3243.6,3243.4,0.00511581]
[1641933426659,0.32955555,3243.7,3243.4,0.00511581]
[1641933428317,0.32955555,3243.7,3243.4,2.04530552]
[1641933428718,0.32955555,3243.7,3243.5,0.00454739]
[1641933429118,0.32955555,3243.7,3243.4,0.00511581]
[1641933430518,0.32955555,3243.7,3243.5,0.7708]
[1641933432454,0.32955555,3243.7,3243.4,0.00511581]
[1641933433665,1.87143925,3243.7,3243.4,0.00511581]
[1641933435509,2.43610974,3243.7,3243.4,0.00511581]
[1641933436612,1.54217,3243.6,3243.4,0.00511581]
[1641933436812,5.22109,3243.5,3243.4,0.00511581]
[1641933437009,5.22109,3243.5,3242.8,0.00852635]
[1641933437315,0.77115,3243.2,3242.8,0.00852635]
[1641933437512,1.67445,3243.2,3242.8,0.00852635]
[1641933437911,1.54241,3243.1,3242.8,0.00852635]
[1641933438112,0.77115,3243.0,3242.8,0.00852635]
[1641933440960,0.377926,3243.0,3242.8,0.00852635]
[1641933442160,0.447,3243.2,3242.8,0.00852635]
[1641933442360,0.77102,3243.2,3242.8,0.00852635]
[1641933443416,0.77099,3243.4,3242.8,0.00852635]
[1641933447971,0.77112,3243.0,3242.8,0.00852635]
[1641933450172,0.77104,3243.2,3242.8,0.00852635]
[1641933450417,1.0,3243.5,3242.8,0.00852635]
[1641933450613,0.447,3243.6,3242.8,0.00852635]
[1641933451210,0.447,3243.6,3242.8,0.77950635]
[1641933451612,0.447,3243.6,3242.9,0.00795793]
[1641933452014,0.77098,3243.4,3242.9,0.00795793]
[1641933452616,0.447,3243.6,3243.0,0.77092]
[1641933453019,0.447,3243.6,3243.1,0.00682108]
[1641933453214,0.77095,3243.5,3243.3,1.03900552]
[1641933453614,0.77095,3243.5,3243.4,0.00511581]
[1641933453816,0.447,3243.6,3243.4,0.00511581]
[1641933454457,0.77095,3243.5,3243.4,0.00511581]
[1641933455364,0.77095,3243.5,3243.1,0.00682108]
[1641933455568,0.77095,3243.5,3242.8,0.00852635]
[1641933455963,0.77095,3243.5,3243.0,1.05496373]
[1641933456365,0.77095,3243.5,3243.1,0.00682108]
[1641933457165,0.78922961,3243.7,3243.1,0.00682108]
[1641933457166,1.56014961,3243.7,3243.1,0.00682108]
[1641933457369,1.10047555,3243.7,3243.1,0.00682108]
[1641933457570,1.10047555,3243.7,3243.3,0.77084]
[1641933457571,0.32955555,3243.7,3243.3,0.77084]
[1641933457813,0.447,3244.5,3243.4,2.1639604]
[1641933458012,0.447,3244.5,3243.4,0.00511581]
[1641933458214,0.447,3244.5,3243.5,0.00454739]
[1641933458409,0.447,3244.5,3243.3,0.00568423]
[1641933458616,0.447,3244.5,3243.6,0.77079]
[1641933458812,0.77083,3244.1,3243.6,0.77079]
[1641933459009,0.77083,3244.1,3243.7,0.00341054]
[1641933460615,0.77083,3244.1,3243.4,0.00511581]
[1641933460819,1.21783,3244.1,3243.3,0.00568423]
[1641933461015,2.21783,3244.1,3243.3,0.00568423]
[1641933461215,0.77101,3243.6,3243.3,0.00568423]
[1641933461855,0.447,3243.5,3243.2,0.00625266]
[1641933462256,1.2181,3243.5,3243.2,0.00625266]
[1641933462458,0.34429969,3243.3,3243.2,0.00625266]
[1641933463662,0.34429969,3243.3,3242.9,0.00795793]
[1641933463865,0.7711,3243.1,3242.9,0.00795793]
[1641933464864,0.7711,3243.1,3242.8,0.00852635]
[1641933468410,2.24696736,3243.0,3242.8,0.00852635]
[1641933468810,4.7712,3242.9,3242.8,0.00852635]
[1641933469060,7.60659991,3242.9,3242.8,0.00852635]
[1641933469258,8.60659991,3242.9,3242.8,0.00852635]
[1641933469463,8.60659991,3242.9,3242.3,0.01136847]
[1641933469664,0.77127,3242.5,3242.3,0.01136847]
[1641933469864,0.77127,3242.4,3242.3,0.01136847]
[1641933475007,0.77127,3242.4,3242.3,5.26136847]
[1641933475612,0.77127,3242.4,3242.3,0.01136847]
[1641933476411,0.77127,3242.4,3242.2,0.83676997]
[1641933478164,2.21127959,3242.3,3242.2,0.83676997]
[1641933478363,4.08535,3242.4,3242.2,0.83676997]
[1641933478767,2.697,3242.3,3242.2,0.83676997]
[1641933479364,5.92959325,3242.3,3242.2,0.83676997]
[1641933479565,1.447,3242.3,3242.2,0.83676997]
[1641933479966,1.447,3242.3,3242.0,4.09096997]
[1641933480165,0.77131,3242.2,3242.0,4.09096997]
[1641933480409,0.447,3242.1,3242.0,4.09096997]
[1641933480811,0.447,3242.1,3242.0,4.09267524]
[1641933481010,0.447,3242.1,3242.0,4.03067524]
[1641933489442,0.447,3242.1,3242.0,0.00170527]
[1641933489642,1.2443,3242.1,3242.0,0.00170527]
[1641933489842,1.2443,3242.1,3241.3,4.4457]
[1641933489843,0.77152,3241.9,3241.6,0.00397896]
[1641933490044,0.447,3241.8,3241.3,3.06181581]
[1641933490440,0.44927369,3241.8,3241.3,3.06181581]
[1641933490640,0.62305353,3241.5,3241.3,3.06181581]
[1641933491041,0.77151,3241.4,3241.3,2.99981581]
[1641933491440,0.77151,3241.4,3241.1,4.36243989]
[1641933491665,1.75131,3241.4,3241.1,4.36243989]